bitfinex/quotes_ETHUSD_20251026
["timestamp","ask_amount","ask_price","bid_price","bid_amount"]
[1761486438012,2.44373752,4092.1,4091.3,2.31412133]
[1761486438213,2.44360736,4092.4,4091.3,3.20312775]
[1761486438396,2.44361222,4092.4,4091.4,4.46483974]
[1761486438603,0.50688,4092.9,4091.4,2.90963974]
[1761486438827,0.29501328,4092.8,4091.5,0.4655]
[1761486439030,2.44354145,4092.5,4091.6,3.99923161]
[1761486439323,2.44282238,4093.7,4091.6,3.99923161]
[1761486439324,2.44336633,4092.8,4091.7,0.02443971]
[1761486439510,0.2187,4093.6,4091.7,0.4655]
[1761486439717,2.44253926,4094.1,4091.7,0.48993971]
[1761486439893,0.75861393,4094.0,4091.7,0.4655]
[1761486440093,0.29101393,4094.0,4091.8,0.02443912]
[1761486440426,0.1224,4092.9,4092.4,1.6776]
[1761486440599,0.1224,4092.9,4092.4,0.1224]
[1761486440800,0.1224,4092.9,4092.8,0.1225]
[1761486441000,0.1224,4093.3,4092.8,0.80232]
[1761486441203,0.1224,4093.3,4092.8,0.588]
[1761486441409,0.1224,4093.5,4092.9,2.90874364]
[1761486441594,0.1224,4093.5,4092.9,0.4655]
[1761486441928,0.4676,4095.1,4093.0,0.61233195]
[1761486442114,0.2155,4095.3,4093.3,0.1224]
[1761486442429,0.1224,4094.1,4093.4,0.4655]
[1761486442633,2.5647043,4094.5,4093.9,0.1224]
[1761486442828,2.56474857,4094.5,4093.9,0.1224]
[1761486443143,0.1224,4094.5,4093.9,0.1224]
[1761486443344,2.44264365,4094.0,4093.1,2.90862843]
[1761486443643,0.50688,4094.2,4093.2,0.4655]
[1761486443843,0.50688,4094.2,4092.8,0.1225]
[1761486443844,0.50688,4094.4,4092.9,1.5552]
[1761486444014,2.44302743,4093.3,4092.9,1.5552]
[1761486444211,2.44300782,4093.4,4092.9,1.5552]
[1761486444392,2.44302316,4093.3,4092.9,1.5552]
[1761486444597,2.44284366,4093.6,4092.9,1.5552]
[1761486444798,2.44306978,4093.3,4092.9,1.5552]
[1761486445009,0.50688,4094.2,4092.9,1.5552]
[1761486445010,2.44313299,4093.2,4092.9,1.5552]
[1761486445243,2.44313299,4093.2,4092.6,0.002]
[1761486445244,2.44330704,4092.9,4092.6,0.002]
[1761486445399,2.44332214,4092.8,4092.6,0.002]
[1761486445600,2.44326409,4092.9,4092.6,0.002]
[1761486446932,0.50688,4093.7,4092.6,0.002]
[1761486447235,2.44325774,4092.9,4092.6,0.002]
[1761486447436,2.44337478,4092.7,4092.6,0.002]
[1761486447668,2.66207478,4092.7,4092.6,0.002]
[1761486448161,2.44337478,4092.7,4092.6,0.002]
[1761486448657,3.41785478,4092.7,4092.6,0.002]
[1761486450347,2.95025478,4092.7,4092.6,0.002]
[1761486450538,3.51147937,4092.7,4092.6,0.002]
[1761486451652,0.2187,4093.3,4092.6,0.002]
[1761486452052,2.44337478,4092.7,4092.6,0.002]
[1761486452366,0.2187,4093.3,4092.6,0.002]
[1761486452527,2.44327651,4092.9,4092.6,0.002]
[1761486452862,2.44337478,4092.7,4092.6,0.002]
[1761486453367,2.56577478,4092.7,4092.6,0.002]
[1761486453829,2.44329128,4092.9,4092.6,0.002]
[1761486454030,2.44332786,4092.8,4092.6,0.002]
[1761486454227,2.66207478,4092.7,4092.6,0.002]
[1761486454547,3.63655478,4092.7,4092.6,0.002]
[1761486454762,2.44337478,4092.7,4092.6,0.002]
[1761486455363,3.41785478,4092.7,4092.6,0.002]
[1761486455557,2.95025478,4092.7,4092.6,0.002]
[1761486455856,3.4896058,4092.7,4092.6,0.002]
[1761486457163,3.9572058,4092.7,4092.6,0.002]
[1761486457651,3.4896058,4092.7,4092.6,0.002]
[1761486457826,2.95025478,4092.7,4092.6,0.002]
[1761486461689,2.44337478,4092.7,4092.6,0.002]
[1761486462547,2.95025478,4092.7,4092.6,0.002]
[1761486462767,3.40725478,4092.7,4092.6,0.002]
[1761486463150,2.95025478,4092.7,4092.6,0.002]
[1761486463587,3.94660672,4092.7,4092.6,0.002]
[1761486463804,4.06900672,4092.7,4092.6,0.002]
[1761486464474,3.56212672,4092.7,4092.6,0.002]
[1761486464884,4.06900672,4092.7,4092.6,0.002]
[1761486465583,3.61200672,4092.7,4092.6,0.002]
[1761486466786,2.56577478,4092.7,4092.6,0.002]
[1761486467299,3.07265478,4092.7,4092.6,0.002]
[1761486467886,3.52965478,4092.7,4092.6,0.002]
[1761486468293,3.07265478,4092.7,4092.6,0.002]
[1761486470661,2.56577478,4092.7,4092.6,0.002]
[1761486472699,3.07265478,4092.7,4092.6,0.002]
[1761486474086,3.52965478,4092.7,4092.6,0.002]
[1761486474272,4.12694907,4092.7,4092.6,0.002]
[1761486474596,3.07265478,4092.7,4092.6,0.002]
[1761486475000,2.56577478,4092.7,4092.6,0.002]
[1761486477423,3.07265478,4092.7,4092.6,0.002]
[1761486477597,3.52965478,4092.7,4092.6,0.002]
[1761486480014,3.07265478,4092.7,4092.6,0.002]
[1761486480187,2.44337478,4092.7,4092.6,0.002]
[1761486480516,2.95025478,4092.7,4092.6,0.002]
[1761486481217,3.9923058,4092.7,4092.6,0.002]
[1761486481418,3.9933058,4092.7,4092.6,0.002]
[1761486484430,7.2233058,4092.7,4092.6,0.002]
[1761486484598,2.95049361,4092.3,4092.2,0.002]
[1761486484803,4.50593248,4091.9,4091.7,0.002]
[1761486484993,0.50688,4090.5,4090.2,0.1837]
[1761486485192,0.50688,4090.5,4088.9,1.73685866]
[1761486485193,2.44453379,4090.8,4090.1,0.1837]
[1761486485417,0.50688,4091.1,4090.1,0.1837]
[1761486485418,2.44486822,4090.2,4090.1,0.1837]
[1761486485593,2.44486213,4090.3,4090.1,0.1837]
[1761486485792,2.44474867,4090.4,4090.1,0.1837]
[1761486485999,2.4448613,4090.3,4090.1,0.1837]
[1761486486301,1.19958,4090.9,4089.5,0.4341]
[1761486486490,2.44509797,4089.9,4089.5,0.4341]
[1761486486692,2.44500049,4090.0,4089.5,0.4341]
[1761486487215,0.50688,4090.8,4089.5,0.4341]
[1761486487422,2.44494209,4090.1,4089.5,0.4341]
[1761486488001,0.50688,4090.6,4089.5,0.4341]
[1761486488632,2.4449384,4090.1,4089.5,0.4341]
[1761486489021,2.4449384,4090.1,4089.4,1.6777]
[1761486489191,0.50688,4090.6,4089.4,0.1225]
[1761486489507,0.50688,4090.8,4089.6,1.5552]
[1761486489707,2.44457414,4090.7,4089.6,4.00040623]
[1761486489894,0.50688,4090.8,4089.7,1.5552]
[1761486490094,0.50688,4090.8,4089.7,0.1224]
[1761486490095,0.1224,4090.2,4089.7,0.1224]
[1761486490296,0.1224,4090.2,4089.7,0.5804]
[1761486490612,0.1224,4090.2,4090.1,0.1837]
[1761486490809,0.1224,4090.2,4089.7,0.1224]
[1761486491009,2.56727297,4090.2,4089.7,0.1224]
[1761486491409,0.1224,4090.2,4089.7,0.1224]
[1761486491741,0.1224,4090.2,4090.1,0.1837]
[1761486492043,0.1224,4090.2,4089.7,0.1224]
[1761486492212,2.56727491,4090.2,4089.7,0.1224]
[1761486492537,0.1224,4090.2,4089.7,0.1224]
[1761486492742,2.56727588,4090.2,4089.7,0.1224]
[1761486492940,2.56727588,4090.2,4089.4,0.1225]
[1761486492941,2.94610295,4090.2,4089.4,0.1225]
[1761486493137,0.1224,4089.9,4089.4,0.5805]
[1761486493339,0.1224,4089.9,4089.5,1.5552]
[1761486493540,2.44515796,4089.8,4089.4,0.1225]
[1761486493855,2.4451689,4089.7,4089.4,0.1225]
[1761486494054,0.1224,4089.9,4089.4,0.1225]
[1761486494466,2.44521245,4089.7,4089.4,0.1225]
[1761486494617,2.44529212,4089.5,4088.7,2.44572006]
[1761486494813,0.49083254,4089.9,4088.8,0.1224]
[1761486494814,0.1224,4089.4,4088.8,0.1224]
[1761486495247,2.4454063,4089.3,4088.8,0.1224]
[1761486495431,2.56779424,4089.4,4088.8,0.1224]
[1761486495634,0.1224,4089.4,4089.3,0.1225]
[1761486497238,2.44345885,4092.6,4089.3,4.60556036]
[1761486497570,2.44379276,4092.0,4089.4,2.52538837]
[1761486497712,2.44379276,4092.0,4090.5,2.44463498]
[1761486498061,2.44421667,4091.3,4090.5,2.44463498]
[1761486498260,2.44415369,4091.4,4090.6,2.62831717]
[1761486498448,2.44415369,4091.4,4090.7,1.5552]
[1761486499182,2.44410798,4091.5,4090.6,0.1837]
[1761486499339,0.50688,4091.8,4090.7,2.4445192]
[1761486499534,2.44379276,4092.0,4091.0,2.44437995]
[1761486499743,2.44373599,4092.1,4091.0,1.5552]
[1761486499940,2.44367094,4092.3,4091.4,2.44409355]
[1761486500376,2.44367094,4092.3,4091.2,3.99947062]
[1761486500377,0.001,4091.7,4091.5,2.44408763]
[1761486500880,0.001,4091.7,4091.5,0.458]
[1761486501699,0.001,4091.7,4091.6,4.77188646]
[1761486501982,0.001,4092.6,4092.5,2.44349419]
[1761486502180,0.001,4092.6,4092.5,2.46792913]
[1761486502365,0.001,4092.6,4092.5,4.48112913]
[1761486502734,0.001,4092.6,4092.5,4.45669419]
[1761486502968,0.001,4092.6,4092.5,5.14672164]
[1761486505335,0.001,4092.6,4092.5,2.0132]
[1761486505540,0.001,4092.6,4092.5,1.5552]
[1761486505861,0.001,4092.6,4091.9,2.44384847]
[1761486506039,0.001,4092.6,4091.6,0.458]
[1761486506242,0.001,4092.6,4091.7,0.458]
[1761486506574,0.001,4092.6,4092.5,2.44349419]
[1761486506779,0.001,4092.6,4092.5,4.70104361]
[1761486506949,0.001,4092.6,4092.5,4.24304361]
[1761486507275,0.001,4092.6,4092.5,2.1356]
[1761486507459,0.001,4092.6,4092.5,4.12109419]
[1761486507860,0.001,4092.6,4092.5,1.6776]
[1761486508466,0.001,4092.6,4092.5,4.57909419]
[1761486508964,0.001,4092.6,4092.5,2.1356]
[1761486509245,0.001,4092.6,4092.5,1.5552]
[1761486509439,0.001,4092.6,4092.5,4.45669419]
[1761486509663,0.001,4092.6,4092.5,2.1356]
[1761486509987,0.001,4092.6,4092.5,5.28137566]
[1761486511986,0.001,4092.6,4092.5,5.15897566]
[1761486520091,1e-08,4093.1,4092.5,3.22236147]
[1761486520398,0.001,4093.2,4092.5,3.22236147]
[1761486520399,1e-08,4093.2,4093.1,3.099116]
[1761486520595,1e-08,4093.2,4093.1,5.81204449]
[1761486520799,1e-08,4093.2,4093.1,6.26044449]
[1761486521230,1e-08,4093.2,4093.1,5.30516449]
[1761486521409,1e-08,4093.2,4093.1,5.75356449]
[1761486521791,1e-08,4093.2,4093.1,5.42756449]
[1761486521987,1e-08,4093.2,4093.1,0.2715]
[1761486522182,1e-08,4093.2,4092.1,0.002]
[1761486522183,1e-08,4093.2,4092.1,0.4504]
[1761486522387,1e-08,4093.2,4092.2,2.44367332]
[1761486522702,1e-08,4093.2,4092.6,2.44342306]
[1761486523316,1e-08,4093.2,4092.4,2.44354147]
[1761486523531,1e-08,4093.2,4092.7,2.44336649]
[1761486523826,0.47150001,4093.2,4092.4,2.44354729]
[1761486523997,2.44315548,4093.1,4092.2,2.44362346]
[1761486524202,2.44315548,4093.1,4092.2,1.5552]
[1761486524393,2.91470287,4093.0,4092.2,2.44361522]
[1761486524593,0.4715,4093.0,4092.3,2.4436128]
[1761486524922,0.2283,4092.9,4092.4,1.5552]
[1761486525123,0.2283,4092.9,4092.4,2.44354727]
[1761486525921,0.2283,4092.9,4092.3,0.7999745]
[1761486526136,0.6998,4092.9,4092.1,1.5572]
[1761486526433,0.6998,4092.9,4092.2,3.99887052]
[1761486526787,2.44331508,4092.8,4092.1,0.002]
[1761486526990,2.91481508,4092.8,4092.1,0.002]
[1761486528110,0.4715,4092.7,4092.1,0.002]
[1761486528302,2.67156443,4092.9,4092.2,2.44365612]
[1761486528506,0.2283,4092.9,4092.2,1.5552]
[1761486529346,0.2283,4092.9,4092.2,0.17063]
[1761486529500,0.2283,4092.9,4092.3,2.44356248]
[1761486529832,0.2283,4092.9,4092.2,3.99885897]
[1761486529994,2.67156226,4092.9,4092.2,3.99885897]
[1761486530193,3.14306226,4092.9,4092.2,1.5552]
[1761486530432,2.67156226,4092.9,4092.1,2.4456922]
[1761486530610,3.14306226,4092.9,4092.1,2.4456922]
[1761486530794,2.44331883,4092.8,4092.1,2.4456922]
[1761486530989,2.91481883,4092.8,4092.1,2.4456922]
[1761486531239,1e-08,4093.2,4092.7,0.1491]
[1761486531606,1e-08,4093.2,4092.8,2.44331508]
[1761486531792,1e-08,4093.2,4093.0,2.44317103]
[1761486532229,1e-08,4093.2,4093.1,1.6776]
[1761486532432,1e-08,4093.2,4093.1,0.1224]
[1761486532654,1e-08,4093.2,4092.2,1.28973514]
[1761486532655,0.47150001,4093.2,4092.2,2.44367332]
[1761486532956,0.47150001,4093.2,4092.5,2.44348118]
[1761486533651,0.47150001,4093.2,4092.4,1.5552]
[1761486533652,2.91460771,4093.2,4092.4,2.44353911]
[1761486534024,0.47150001,4093.2,4092.5,2.44346646]
[1761486534534,2.44313723,4093.1,4092.4,1.5552]
[1761486534734,2.44313723,4093.1,4092.2,1.5552]
[1761486534933,0.47150001,4093.2,4092.1,0.1511]
[1761486534934,0.4715,4093.0,4092.1,0.1511]
[1761486535136,0.4715,4093.0,4092.1,0.002]
[1761486535430,2.67160916,4092.9,4092.1,2.4456753]
[1761486535647,2.67160916,4092.9,4092.2,2.44366734]
[1761486535851,0.6998,4092.9,4092.2,2.44366734]
[1761486536155,0.6998,4092.9,4092.1,0.002]
[1761486536339,0.6998,4092.9,4092.2,2.44367332]
[1761486536742,0.4715,4092.8,4092.1,2.44569771]
[1761486536940,2.91482402,4092.8,4092.1,0.002]
[1761486537142,2.91482402,4092.8,4092.1,2.44570804]
[1761486537456,0.4715,4092.7,4092.3,2.44360898]
[1761486538125,0.2283,4092.9,4092.3,2.44360898]
[1761486538522,1e-08,4093.2,4092.1,0.1511]
[1761486538726,1e-08,4093.2,4092.2,0.02443673]
[1761486538961,1e-08,4093.2,4092.7,2.44334201]
[1761486539158,1e-08,4093.2,4092.6,2.44342503]
[1761486539743,1e-08,4093.2,4092.7,2.44337247]
[1761486540068,1e-08,4093.2,4092.6,2.44341999]
[1761486540728,1e-08,4093.2,4092.3,0.02443613]
[1761486540927,1e-08,4093.2,4093.1,2.592236]
[1761486541247,1e-08,4093.2,4093.1,4.62026736]
[1761486541963,1e-08,4093.2,4093.1,4.595836]
[1761486542165,1e-08,4093.2,4093.1,4.60016736]
[1761486542673,1e-08,4093.2,4093.1,4.72256736]
[1761486542960,1e-08,4093.2,4093.1,6.81545165]
[1761486543158,1e-08,4093.2,4093.1,6.79102029]
[1761486543333,1e-08,4093.2,4093.1,5.50128515]
[1761486544074,1e-08,4093.2,4093.1,6.36595426]
[1761486544226,1e-08,4093.2,4093.1,6.24355426]
[1761486544433,1e-08,4093.2,4093.1,1.5552]
[1761486544744,1e-08,4093.2,4093.1,3.998336]
[1761486544943,1e-08,4093.2,4093.1,4.147436]
[1761486545252,1e-08,4093.2,4093.1,1.5552]
[1761486545461,1e-08,4093.2,4093.1,4.147436]
[1761486545635,1e-08,4093.2,4093.1,4.9904796]
[1761486546247,1e-08,4093.2,4093.1,4.5621796]
[1761486546650,1e-08,4093.2,4093.1,4.4130796]
[1761486546831,1e-08,4093.2,4093.1,3.998336]
[1761486547961,0.47080001,4093.2,4092.4,0.86466911]
[1761486548157,0.47080001,4093.2,4092.5,2.44349419]
[1761486548670,0.47080001,4093.2,4092.5,2.44344292]
[1761486548846,0.47080001,4093.2,4092.6,2.44342694]
[1761486549278,0.47080001,4093.2,4092.1,0.002]
[1761486549279,0.2255,4092.7,4092.1,0.002]
[1761486549438,0.2255,4092.7,4092.2,2.44362498]
[1761486549639,0.6568,4092.7,4092.2,2.44362498]
[1761486549839,0.6568,4092.7,4092.1,0.002]
[1761486550072,2.44360285,4092.4,4092.1,0.002]
[1761486550373,2.44367332,4092.2,4092.1,0.002]
[1761486550750,2.87497332,4092.2,4092.1,0.002]
[1761486550948,0.4313,4092.2,4092.1,0.002]
[1761486551282,2.87497332,4092.2,4092.1,0.002]
[1761486551571,0.4313,4092.2,4092.1,0.002]
[1761486553166,2.87497332,4092.2,4092.1,0.002]
[1761486553372,3.40682986,4092.2,4092.1,0.002]
[1761486553987,0.2255,4092.7,4092.1,0.002]
[1761486553988,0.4313,4092.5,4092.1,0.002]
[1761486554137,0.2255,4092.7,4092.2,2.44366207]
[1761486554339,0.1224,4092.5,4092.3,0.02443613]
[1761486554637,0.1224,4092.5,4092.2,2.44367332]
[1761486554876,0.2255,4092.7,4092.4,3.9987539]
[1761486555098,0.2255,4092.7,4092.6,2.44343449]
[1761486555269,0.2255,4092.7,4092.3,1.95528733]
[1761486555270,0.3479,4093.1,4092.7,2.44337478]
[1761486555470,0.3479,4093.1,4092.8,2.44328942]
[1761486555669,0.3479,4093.1,4092.5,0.1224]
[1761486555893,0.3479,4093.1,4092.6,2.44342354]
[1761486556089,0.3479,4093.1,4092.5,0.1224]
[1761486556090,0.3479,4093.1,4092.7,2.44337293]
[1761486556305,0.3479,4093.1,4092.5,2.56585241]
[1761486556497,0.3479,4093.1,4092.5,3.26232767]
[1761486557017,0.4313,4093.0,4092.5,0.1224]
[1761486557174,0.1224,4092.7,4092.1,0.1244]
[1761486557509,0.4313,4092.6,4092.1,0.002]
[1761486558011,2.87474386,4092.6,4092.1,0.002]
[1761486558205,0.4313,4092.5,4092.1,0.002]
[1761486558390,0.5537,4092.5,4092.1,0.002]
[1761486558581,0.4313,4092.5,4092.1,0.002]
[1761486558795,0.1224,4092.2,4092.1,0.002]
[1761486559180,0.5537,4092.2,4092.1,0.002]
[1761486559437,2.99737332,4092.2,4092.1,0.002]
[1761486559583,3.54146997,4092.2,4092.1,0.002]
[1761486560103,4.04834997,4092.2,4092.1,0.002]
[1761486563292,4.04834997,4092.2,4091.7,0.002]
[1761486563293,3.17629221,4091.8,4091.7,1e-08]
[1761486563494,4.85389221,4091.8,4091.7,1e-08]
[1761486563719,5.28519221,4091.8,4091.7,1e-08]
[1761486564026,6.05809458,4091.8,4091.7,1e-08]
[1761486564527,5.55121458,4091.8,4091.7,1e-08]
[1761486564897,2.44522691,4089.6,4088.4,1.28973514]
[1761486565092,2.44522691,4089.6,4087.1,0.002]
[1761486565093,4.50730691,4089.6,4087.1,0.86666911]
[1761486565444,5.65639833,4089.6,4088.0,0.1491]
[1761486565730,5.6947106,4090.5,4088.0,0.1491]
[1761486565731,2.44476232,4090.4,4089.4,0.1837]
[1761486565939,0.4313,4090.7,4089.4,0.1837]
[1761486566091,0.4313,4090.3,4089.5,0.02645286]
[1761486566291,1.5552,4091.7,4089.5,0.002]
[1761486566292,0.4313,4091.0,4089.5,0.002]
[1761486566730,2.44481836,4090.3,4089.5,0.002]
[1761486567022,2.44487403,4090.2,4089.5,0.002]
[1761486567202,0.31011844,4090.9,4089.5,0.002]
[1761486567203,0.4313,4090.8,4089.5,0.002]
[1761486567604,2.44475312,4090.4,4089.5,0.002]
[1761486568000,2.95144938,4090.7,4089.6,2.44517183]
[1761486568203,0.4313,4090.8,4089.6,0.64477676]
[1761486568401,0.2255,4091.1,4089.7,0.02445167]
[1761486568601,0.2255,4091.1,4089.9,1.5552]
[1761486568804,0.2255,4091.1,4089.7,0.4347]
[1761486568805,2.4444443,4091.0,4089.7,0.4347]
[1761486569020,0.6568,4091.1,4090.1,2.44491989]
[1761486569230,0.6568,4091.1,4090.2,1.5552]
[1761486569424,0.6568,4091.1,4090.2,1.7043]
[1761486569624,2.44446421,4090.9,4090.2,0.1491]
[1761486569824,2.44446421,4090.9,4090.1,1.5552]
[1761486570026,2.44446421,4090.9,4089.7,2.87985555]
[1761486570027,2.44457634,4090.7,4089.8,2.44505306]
[1761486570227,0.4313,4090.8,4089.8,0.40022531]
[1761486570427,2.44461913,4090.7,4089.9,1.5552]
[1761486570707,2.44456938,4090.7,4089.5,0.002]
[1761486570926,2.8759654,4090.6,4089.5,0.002]
[1761486571231,3.21424994,4090.6,4089.5,0.002]
[1761486571527,2.87599756,4090.5,4089.5,0.002]
[1761486571734,2.44485464,4090.3,4089.5,0.002]
[1761486571901,0.2255,4091.8,4089.5,0.002]
[1761486572101,2.44470754,4090.5,4089.5,0.002]
[1761486572329,2.44470754,4090.5,4089.5,2.44728208]
[1761486572534,2.44475432,4090.4,4089.6,1.95544821]
[1761486572730,0.4313,4090.7,4089.5,0.002]
[1761486573031,2.87594056,4090.6,4089.5,0.002]
[1761486573232,2.44480316,4090.4,4089.9,0.002]
[1761486573412,2.44498777,4090.0,4089.9,0.002]
[1761486573608,0.4313,4090.5,4089.9,0.002]
[1761486573609,2.44488806,4090.2,4089.9,0.002]
[1761486573837,2.44492857,4090.1,4089.9,0.002]
[1761486574036,0.4313,4090.4,4089.9,0.002]
[1761486574336,0.50688,4091.0,4089.9,0.002]
[1761486574636,2.87616087,4090.3,4089.9,0.002]
[1761486574813,0.6568,4091.1,4089.9,0.002]
[1761486575135,2.44471728,4090.5,4089.9,0.002]
[1761486575337,0.4313,4091.0,4089.9,0.002]
[1761486575338,0.1224,4090.3,4089.9,0.002]
[1761486575532,0.5537,4090.3,4089.9,0.002]
[1761486575742,0.1224,4090.0,4089.9,0.002]
[1761486576105,2.87628777,4090.0,4089.9,0.002]
[1761486576300,3.67079655,4090.0,4089.9,0.002]
[1761486576502,2.95210691,4089.6,4089.5,0.002]
[1761486577009,3.38340691,4089.6,4089.5,0.002]
[1761486578330,4.93860691,4089.6,4089.5,0.002]
[1761486578533,3.38340691,4089.6,4089.5,0.002]
[1761486578733,3.98881184,4089.6,4089.5,0.002]
[1761486580251,1.11228493,4089.6,4089.5,0.002]
[1761486580408,2.88242691,4089.6,4089.5,0.002]
[1761486581107,2.44522691,4089.6,4089.5,0.002]
[1761486581511,0.4372,4090.1,4089.5,0.002]
[1761486581730,0.2316,4089.8,4089.5,0.002]
[1761486582229,2.44522691,4089.6,4089.5,0.002]
[1761486582758,2.88242691,4089.6,4089.5,0.002]
[1761486582942,3.94522165,4089.6,4089.5,0.002]
[1761486583240,3.00114165,4089.6,4089.5,0.002]
[1761486583542,0.2316,4089.8,4089.5,0.002]
[1761486583742,0.6688,4089.8,4089.5,0.002]
[1761486583943,2.44522691,4089.6,4089.5,0.002]
[1761486584443,0.2316,4089.8,4089.5,0.002]
[1761486584646,2.44522691,4089.6,4089.5,0.002]
[1761486585013,2.88242691,4089.6,4089.5,0.002]
[1761486586113,0.1224,4089.6,4089.5,0.002]
[1761486588741,0.65249268,4091.5,4089.7,2.44516712]
[1761486588742,2.88147255,4091.2,4089.7,2.44516712]
[1761486588942,0.4372,4091.2,4089.9,2.44503731]
[1761486589152,2.66983546,4091.1,4090.0,2.44498088]
[1761486589354,2.44439903,4091.0,4090.0,2.44498088]
[1761486589659,2.44445242,4090.9,4090.1,0.1491]
[1761486589835,2.44452815,4090.8,4090.1,0.1491]
[1761486590352,2.44466769,4090.6,4089.8,0.44343671]
[1761486590652,2.44476631,4090.4,4089.5,2.44728281]
[1761486590850,2.44469984,4090.5,4089.6,2.44521971]
[1761486591459,2.44476273,4090.4,4089.6,2.44521971]
[1761486591654,2.44469754,4090.5,4089.6,2.44521971]
[1761486591856,2.44468891,4090.5,4089.6,2.44521971]
[1761486592169,2.44446635,4090.9,4089.8,2.44508293]
[1761486592463,2.44450963,4090.8,4089.8,2.44508293]
[1761486593170,2.44460437,4090.7,4089.8,2.44508293]
[1761486593385,2.44463053,4090.6,4089.8,2.44508293]
[1761486593732,2.44463053,4090.6,4089.7,0.40044197]
[1761486593935,2.88183053,4090.6,4089.5,0.002]
[1761486594433,2.88183053,4090.6,4089.8,2.44509467]
[1761486594639,2.67088752,4091.1,4089.5,1.5572]
[1761486594835,2.44439012,4091.0,4090.1,2.44491627]
[1761486595066,0.2265,4091.1,4090.1,2.44491627]
[1761486595369,0.2265,4091.1,4090.0,1.5552]
[1761486595370,0.2265,4091.1,4090.2,0.1491]
[1761486595542,2.44441213,4091.0,4090.2,2.59392243]
[1761486595958,2.44441213,4091.0,4089.7,1.5552]
[1761486595959,0.55523636,4091.0,4089.7,1.5552]
[1761486596274,0.2265,4091.1,4089.7,2.44515824]
[1761486596275,2.44469981,4090.5,4089.7,2.44515824]
[1761486596468,2.44469981,4090.5,4089.5,1.5572]
[1761486596670,2.44469981,4090.5,4089.5,2.44725616]
[1761486596994,2.44494546,4090.1,4089.5,0.002]
[1761486597471,2.44486912,4090.2,4089.5,0.002]
[1761486597689,2.44495131,4090.1,4089.5,0.002]
[1761486597854,2.44351675,4090.1,4089.5,0.002]
[1761486598355,2.44499747,4090.0,4089.5,0.002]
[1761486598755,0.1224,4089.8,4089.5,0.002]
[1761486600906,0.1224,4089.8,4089.5,0.43306386]
[1761486601109,0.001,4091.1,4089.7,0.1224]
[1761486601264,0.1224,4090.6,4090.3,2.44475925]
[1761486601962,0.1224,4090.6,4090.2,2.44485667]
[1761486602161,0.1224,4090.6,4090.1,0.2715]
[1761486602466,0.1224,4090.6,4090.5,2.44468891]
[1761486602664,0.2186,4090.5,4089.2,0.1837]
[1761486602983,0.2186,4090.5,4089.7,1.5552]
[1761486602984,0.1224,4090.0,4089.7,1.5552]
[1761486603185,0.1224,4090.0,4089.4,1.6796]
[1761486603389,0.2186,4089.9,4089.4,0.002]
[1761486603566,0.1224,4089.6,4089.4,0.002]
[1761486603762,0.1224,4089.6,4089.4,2.4473307]
[1761486603994,0.1224,4089.6,4089.4,0.002]
[1761486604372,2.90582691,4089.6,4089.4,0.002]
[1761486604572,3.46278279,4089.6,4089.4,0.002]
[1761486605897,3.96966279,4089.6,4089.4,0.002]
[1761486606992,5.52486279,4089.6,4089.4,0.002]
[1761486607186,6.05025328,4089.6,4089.4,0.002]
[1761486608796,2.44522691,4089.6,4089.4,0.002]
[1761486608982,3.42120691,4089.6,4089.4,0.002]
[1761486609189,2.91432691,4089.6,4089.4,0.002]
[1761486610198,3.42120691,4089.6,4089.4,0.002]
[1761486611022,3.9466405,4089.6,4089.4,0.002]
[1761486611317,6.64249548,4089.6,4089.4,0.002]
[1761486611484,3.9466405,4089.6,4089.4,0.002]
[1761486611691,3.42120691,4089.6,4089.4,0.002]
[1761486612115,2.44522691,4089.6,4089.4,0.002]
[1761486612613,3.42120691,4089.6,4089.4,0.002]
[1761486613327,2.44522691,4089.6,4089.4,0.002]
[1761486613689,2.44491954,4090.2,4089.4,0.002]
[1761486613690,2.44518603,4089.7,4089.4,0.002]
[1761486614203,0.1224,4089.6,4089.4,0.002]
[1761486614712,2.56762691,4089.6,4089.4,0.002]
[1761486614911,0.65249268,4091.2,4089.5,0.4529]
[1761486615236,0.1224,4090.4,4089.8,0.1224]
[1761486615438,0.1224,4090.4,4089.5,0.002]
[1761486615601,0.1224,4090.0,4089.6,1.75621]
[1761486615803,0.1224,4090.0,4089.6,0.20101]
[1761486616052,0.1224,4090.0,4089.6,0.65191]
[1761486616843,0.1224,4090.0,4089.6,0.20101]
[1761486617012,2.44522691,4089.6,4089.5,0.002]
[1761486617949,2.56757679,4089.7,4089.5,0.002]
[1761486618153,0.1224,4089.7,4089.5,0.002]
[1761486618315,0.1224,4089.8,4089.5,0.4529]
[1761486618531,0.1224,4089.8,4089.6,0.20101]
[1761486618927,0.1224,4089.8,4089.5,0.002]
[1761486619312,0.1224,4089.8,4089.5,2.44727972]
[1761486619544,0.1224,4089.8,4089.5,0.002]
[1761486619739,2.5675179,4089.8,4089.5,0.002]
[1761486620048,0.1224,4089.8,4089.5,0.002]
[1761486620422,0.1224,4089.8,4089.6,0.24493983]
[1761486620617,0.1224,4089.8,4089.5,0.002]
[1761486621210,2.44522691,4089.6,4089.5,0.002]
[1761486622109,2.91432691,4089.6,4089.5,0.002]
[1761486623659,2.44492463,4090.2,4089.5,0.4529]
[1761486623858,2.44472109,4090.5,4089.5,0.4529]
[1761486624024,0.50688,4090.7,4089.5,3.18816622]
[1761486624222,2.44475379,4090.4,4089.5,3.18816622]
[1761486625240,2.44475379,4090.4,4089.6,2.44521194]
[1761486626530,2.44483812,4090.3,4089.5,3.18816481]
[1761486626929,2.44487273,4090.2,4089.5,0.742924]
[1761486627441,0.001,4090.1,4089.5,0.742924]
[1761486627743,0.001,4090.1,4089.6,2.76422675]